[Event "26th Womens ECCC 2022"]
[Site "Mayrhofen"]
[Date "2022.10.09"]
[Round "7.19"]
[White "Mammadova, Gulnar"]
[Black "Gajcin, Marina"]
[Result "1/2-1/2"]
[ECO "B31"]
[WhiteElo "2389"]
[BlackElo "2228"]
[Annotator "TA"]
[PlyCount "168"]
[EventDate "2022.10.03"]
[EventType "team-tourn"]
[EventCountry "AUT"]
[SourceTitle "playchess.com"]
[Source "ChessBase"]
[SourceQuality "1"]
[TimeControl "40/5400+30:1800+30"]

{[%evp 17,168,14,38,31,34,33,34,25,27,0,43,31,41,25,16,11,8,-23,-29,-75,-73,-90,-73,-86,-82,-87,-79,-141,-112,-109,-100,-108,-97,-130,-141,-106,-85,-67,-82,-88,-85,-145,-143,-143,-152,-135,-97,-214,-216,-218,-216,-216,-216,-211,-198,-174,0,-212,-200,-202,-60,-56,-49,-60,-68,-56,-33,-21,-22,-59,-6,-17,-25,-39,0,0,0,0,0,0,0,0,0,0,0,0,0,0,0,0,0,0,0,0,-8,-8,-12,-25,-10,-23,0,0,0,0,0,0,0,0,0,0,0,0,0,0,0,0,0,0,0,-56,0,0,0,0,0,0,0,0,0,0,0,0,0,0,0,0,0,-303,-317,-317,-309,-310,0,0,0,-297,0,0,0,-268,0,0,0]} 1. e4 {[%emt 0:00:02]} c5 {[%emt 0:00:05]} 2. Nf3 {[%emt 0:00:05]} Nc6 {[%emt 0:00:06]} 3. Bb5 {[%emt 0:00:08]} g6 {[%emt 0:00:06]} 4. Bxc6 {[%emt 0:00:11]} dxc6 {[%emt 0:00:06]} 5. d3 {[%emt 0:00:29]} Bg7 {[%emt 0:00:43]} 6. h3 {[%emt 0:00:40]} Nf6 {[%emt 0:00:27]} 7. Nc3 {[%emt 0:01:19]} O-O {[%emt 0:03:29]} 8. Be3 {[%emt 0:02:28]} b6 {[%emt 0:02:10]} 9. Qd2 {[%emt 0:01:42]} Ne8 {[%emt 0:09:29][%cal Bf6e8,Be8g7,Bg7e6][%mdl 32]} (9... e5 $5) 10. Bh6 {[%emt 0:02:24] B31: Sicilian: 2...Nc6 3 Bb5 g6.} f6 {[%emt 0:02:28]} 11. e5 {[%emt 0:07:10]} Be6 {[%emt 0:12:50]} 12. O-O {[%emt 0:04:35] White is slightly better.} Qd7 {[%emt 0:06:00]} 13. Rae1 {[%emt 0:01:59]} Bxh6 {[%emt 0:10:40]} (13... Bxh3 $5 14. gxh3 Qxh3 15. Bxg7 Qxf3 $11) 14. Qxh6 {[%emt 0:00:05]} Ng7 {[%emt 0:00:30] [#]} 15. Qd2 $146 {[%emt 0:08:32]} ({Predecessor:} 15. Qf4 Rad8 16. a3 g5 17. Qh2 h6 18. exf6 exf6 19. Re2 c4 20. Rd2 Qe7 21. dxc4 Rxd2 22. Nxd2 Rd8 23. Nf3 Bxc4 24. Re1 Qf7 {0-1 (24) Aberbach Peltzman,A (2066)-Balabaev,F (2539) Chessfriend.com 2003}) 15... Rad8 {[%emt 0:05:26]} 16. Ne4 {[%emt 0:04:04]} Bd5 {[%emt 0:06:07]} 17. Qc3 {[%emt 0:02:53][%cal Re5f6]} f5 {[%emt 0:03:39]} 18. Ned2 {[%emt 0:02:32]} (18. Neg5 $11) 18... Ne6 $1 $17 {[%emt 0:04:52]} 19. Kh2 {[%emt 0:03:52]} Qe8 {[%emt 0:05:44]} (19... Bxa2 $2 20. b3 $18) 20. Ng1 {[%emt 0:05:26]} g5 $1 {[%emt 0:00:42][%cal Bg6g5,Bg5g4][%mdl 32]} (20... Bxa2 $2 21. b3 $18) 21. f3 {[%emt 0:06:00]} Qh5 {[%emt 0:03:19]} (21... Bxa2 $2 22. b3 $18) 22. Nc4 {[%emt 0:04:24]} ({Better is} 22. Qa3) 22... g4 {[%emt 0:04:55]} 23. f4 {[%emt 0:00:57]} Kh8 {[%emt 0:03:57]} 24. Ne3 {[%emt 0:02:29]} Rg8 {[%emt 0:00:24]} (24... Bxa2 $6 25. Qa3 Bd5 26. Nxd5 cxd5 27. Qxa7 $11) 25. Nxd5 {[%emt 0:00:59]} cxd5 {[%emt 0:00:20]} (25... Rxd5 26. g3 $15) 26. Qd2 {[%emt 0:06:19]} Rg6 $36 {[%emt 0:00:09][%mdl 2048] Black has strong initiative.} 27. Qd1 {[%emt 0:06:00]} Qh6 {[%emt 0:01:04]} 28. g3 {[%emt 0:01:10]} gxh3 {[%emt 0:00:04][%cal Og6g3]} 29. Qf3 {[%emt 0:05:17]} (29. Ne2 $142) 29... Nd4 {[%emt 0:01:33][%csl LRc2,LRf3]} 30. Qf2 {[%emt 0:00:16]} Rdg8 {[%emt 0:00:54][%cal Od4c2]} 31. Re3 {[%emt 0:00:10]} Ne6 {[%emt 0:00:44]} 32. Nxh3 {[%emt 0:02:45]} (32. Ne2 $17) 32... Qg7 $1 $19 {[%emt 0:00:36]} 33. Kg2 {[%emt 0:04:11]} Rh6 {[%emt 0:04:31]} 34. Rh1 {[%emt 0:01:47]} Qg4 {[%emt 0:00:08][%cal Oh6h3]} 35. Rf3 {[%emt 0:00:41]} Nd4 {[%emt 0:00:48]} 36. Re3 {[%emt 0:00:05]} Ne6 {[%emt 0:01:08][%cal Oh6h3]} 37. Rf3 $1 {[%emt 0:00:02]} Rgg6 {[%emt 0:04:19]} ({Not} 37... Nd4 38. Re3) 38. c3 {[%emt 0:03:28]} Rh5 {[%emt 0:01:38]} ({Black should try} 38... Rh4 $1 $19 {And now ...Rgh6 would win.} 39. Ng5 Rxh1 40. Kxh1 Nxg5 41. fxg5 Rxg5) 39. Ng1 $1 $15 {[%emt 0:00:37]} Rxh1 {[%emt 0:01:23]} 40. Kxh1 {[%emt 0:00:01]} Rh6+ {[%emt 0:01:23]} 41. Kg2 {[%emt 0:30:05]} Qh5 {[%emt 0:07:44] aiming for ...Qh1+.} (41... d4 {is more complex.} 42. Qd2 Qg8 43. Qd1 Rg6) 42. Kf1 {[%emt 0:00:00]} Qe8 {[%emt 0:02:45]} 43. Re3 {[%emt 0:00:00][%cal Bf3e3,Be3e2,Be2g2][%mdl 32]} d4 {[%emt 0:02:54]} (43... Qb5 $15) 44. Re2 $11 {[%emt 0:00:00]} dxc3 {[%emt 0:07:01]} 45. bxc3 {[%emt 0:00:00]} Nc7 {[%emt 0:01:11]} 46. Qf3 {[%emt 0:00:00]} Qd8 {[%emt 0:02:56]} 47. Rg2 {[%emt 0:00:00]} Qd5 {[%emt 0:02:21]} 48. c4 {[%emt 0:00:00]} Qd4 {[%emt 0:00:37]} 49. g4 {[%emt 0:00:00]} Rh4 {[%emt 0:00:33][%cal Oh7h5]} 50. Ne2 {[%emt 0:00:00]} Rh1+ $1 {[%emt 0:00:32]} 51. Rg1 {[%emt 0:00:00]} Rxg1+ {[%emt 0:00:17]} 52. Nxg1 {[%emt 0:00:00]} fxg4 {[%emt 0:00:29]} 53. Qxg4 {[%emt 0:00:00]} Qxd3+ {[%emt 0:00:10][%mdl 4096] Endgame KQN-KQN} 54. Ne2 {[%emt 0:00:00]} e6 {[%emt 0:02:59]} 55. Qg5 {[%emt 0:00:00]} Qd7 {[%emt 0:00:21] Inhibits Qe7.} (55... Ne8 $2 56. Qe7 Qg6 57. Qxa7 $18) 56. f5 {[%emt 0:00:00]} exf5 {[%emt 0:00:18]} 57. Qf6+ {[%emt 0:00:13]} Kg8 {[%emt 0:00:17] Hoping for ...Ne6.} 58. Nf4 {[%emt 0:01:45] Against Ne6} (58. Qg5+ Kf8 59. Qf6+ Qf7 60. Qh8+ Ke7 $17) 58... Qd1+ {[%emt 0:02:47]} (58... Ne8 $5 {[%cal Rd7d1]} 59. Nd5 Qf7 $15) 59. Kf2 {[%emt 0:00:39]} Qd4+ {[%emt 0:00:09]} 60. Kf3 {[%emt 0:01:45]} Qe4+ {[%emt 0:00:11]} ({Don't play} 60... Qd1+ $6 61. Ne2 $17) 61. Kg3 {[%emt 0:00:02] White wants to mate with Qd8+.} Qe3+ {[%emt 0:00:40]} 62. Kg2 {[%emt 0:00:01] Threatens to win with Qd8+. Dancing on a razor blade.} Qxf4 {[%emt 0:01:53]} 63. Qd8+ {[%emt 0:00:04]} Kf7 {[%emt 0:00:09]} 64. Qxc7+ {[%emt 0:00:11] KQ-KQ} Kg6 {[%emt 0:00:04] Strongly threatening ...Qd2+.} 65. Qc6+ {[%emt 0:02:21]} Kg5 {[%emt 0:00:56]} (65... Kg7 $5 66. Qf6+ $8 Kg8 $11) 66. Qf6+ {[%emt 0:01:18]} Kg4 {[%emt 0:00:01]} (66... Kh5 $5 67. e6 $8 Qe4+ 68. Kf2 Kg4 $11) 67. e6 $1 {[%emt 0:00:50]} Qd2+ {[%emt 0:01:09]} 68. Kf1 {[%emt 0:00:15]} (68. Kg1 $1 $11) 68... Qc1+ {[%emt 0:00:27]} (68... Qxa2 $2 69. Qe5 Kf3 70. Qxf5+ Ke3 71. Qe5+ Kd3 72. e7 Qb1+ 73. Kf2 Qc2+ 74. Kg3 Kxc4 75. e8=Q $18) (68... f4 $1 $15 69. Qe5 f3 70. Qe4+ Kg5 71. Qxf3 Qc1+ 72. Kg2 Qc2+ 73. Kh3 Qg6) 69. Kf2 {[%emt 0:00:09] Qe5 is the strong threat.} Qf4+ {[%emt 0:01:21]} (69... Qxc4 $2 70. Qe5 Qxa2+ 71. Qe2+ Qxe2+ 72. Kxe2 $18) 70. Ke1 {[%emt 0:01:05]} Qe3+ {[%emt 0:00:19]} (70... Qxc4 $2 71. Qe5 $18) 71. Kd1 {[%emt 0:00:51]} Qd3+ {[%emt 0:00:10]} 72. Kc1 {[%emt 0:00:20]} Qxc4+ {[%emt 0:00:09]} 73. Kb2 {[%emt 0:00:01]} Qb4+ {[%emt 0:01:11]} 74. Kc1 {[%emt 0:00:33]} Qa3+ {[%emt 0:00:27]} (74... c4 $5 75. Qg7+ $8 Kf3 $11) 75. Kb1 {[%emt 0:00:06]} Qd3+ {[%emt 0:00:06]} 76. Kb2 {[%emt 0:00:16]} Qd2+ {[%emt 0:00:49]} (76... c4 $5 77. Qg7+ $8 Kh4 78. Qf6+ Kh5 79. Qf7+ Kh6 80. Qf8+ Kh5 81. Qf7+ Kh6 82. Qf8+ Kh5 83. Qf7+ $11) 77. Kb1 $2 {[%emt 0:02:09][%mdl 8192]} (77. Kb3 $11) 77... c4 $1 $19 {[%emt 0:02:24]} 78. Qg7+ {[%emt 0:00:04]} Kf3 {[%emt 0:00:08] ( -> ...c3)} 79. Qe5 {[%emt 0:00:10]} Qd1+ {[%emt 0:01:00]} 80. Kb2 {[%emt 0:00:01]} Qd2+ {[%emt 0:00:09]} 81. Kb1 $1 {[%emt 0:00:02] [#]} Qd1+ $2 {[%emt 0:00:56]} (81... c3 $1 $19 {[%cal Rd2d1]} 82. Qxf5+ Kg3) 82. Kb2 $11 {[%emt 0:00:01]} Qd2+ $2 {[%emt 0:00:22][%mdl 8192]} (82... c3+ $11 83. Qxc3+ Kg4 84. Qg7+ Kf4 85. Qc7+ Kg4 86. Qg7+ Kf4 87. Qc7+ Kg4 88. Qg7+) 83. Kb1 $1 $19 {[%emt 0:00:07] [#]} Qd3+ $2 {[%emt 0:00:47]} (83... c3 $1 $19 {[%cal Rd2d1]} 84. Qxf5+ Kg3) 84. Kb2 $11 {[%emt 0:00:02] Black must now prevent Qc3.} Qd2+ {[%emt 0:00:25] Weighted Error Value: White=0.10 (very precise) /Black=0.15 (very precise)} 1/2-1/2

[Event "26th Womens ECCC 2022"]
[Site "Mayrhofen"]
[Date "2022.10.09"]
[Round "7.20"]
[White "Zarkovic, Mila"]
[Black "Balajayeva, Khanim"]
[Result "0-1"]
[ECO "C77"]
[WhiteElo "2219"]
[BlackElo "2384"]
[Annotator "TA"]
[PlyCount "102"]
[EventDate "2022.10.03"]
[EventType "team-tourn"]
[EventCountry "AUT"]
[SourceTitle "playchess.com"]
[Source "ChessBase"]
[SourceQuality "1"]
[TimeControl "40/5400+30:1800+30"]

{[%evp 23,102,12,28,20,27,23,35,21,52,38,55,39,45,-16,-6,-13,-13,-25,-16,-5,21,20,0,0,48,60,54,0,1,-34,19,-17,-20,-20,-22,-13,-20,-20,-8,-30,-36,-81,-86,-81,-58,-89,-90,-137,-138,-122,-127,-220,-225,-229,-223,-216,-190,-178,-181,-315,-300,-316,-299,-448,-442,-469,-450,-739,-447,-795,-810,-775,-757,-729,-716,-2505,-2310,-6091,-5601,-6095,-4914]} 1. e4 {[%emt 0:00:02]} e5 {[%emt 0:00:06]} 2. Nf3 {[%emt 0:00:05]} Nc6 {[%emt 0:00:04]} 3. Bb5 {[%emt 0:00:08]} a6 {[%emt 0:00:03]} 4. Ba4 {[%emt 0:00:06]} Nf6 {[%emt 0:00:06]} 5. O-O {[%emt 0:00:10]} Be7 {[%emt 0:00:04]} 6. Re1 {[%emt 0:00:42]} b5 {[%emt 0:00:16]} 7. Bb3 {[%emt 0:00:06]} d6 {[%emt 0:00:05]} 8. a4 {[%emt 0:01:01]} Bd7 {[%emt 0:02:01]} 9. c3 {[%emt 0:23:56]} O-O {[%emt 0:00:26]} 10. d3 {[%emt 0:00:19]} Na5 {[%emt 0:05:34]} 11. Bc2 {[%emt 0:00:10]} c5 {[%emt 0:00:09]} 12. Nbd2 {[%emt 0:00:12][%cal Bb1d2,Bd2f1,Bf1e3][%mdl 32]} Qc7 {[%emt 0:05:37]} 13. Nf1 {[%emt 0:00:29] C90: Closed Ruy Lopez with 7...d6: Early deviations.} Rfc8 {[%emt 0:06:20]} 14. Ne3 {[%emt 0:03:55] [#]} g6 $146 {[%emt 0:03:51]} ({Predecessor:} 14... Bf8 15. h3 Nc6 16. Nh2 Be6 17. Nhg4 Nxg4 18. hxg4 Rab8 19. g5 Nd4 20. Nd5 Bxd5 21. exd5 Nxc2 22. Qxc2 {½-½ (53) Efimenko,Z (2651)-Saduakassova,D (2361) Abu Dhabi 2013}) 15. h3 {[%emt 0:07:32] White is slightly better.} b4 {[%emt 0:11:19]} 16. cxb4 $1 {[%emt 0:07:07]} cxb4 {[%emt 0:00:13][%cal Ob4b3]} 17. d4 {[%emt 0:00:27]} Bf8 {[%emt 0:07:07]} 18. Bd3 {[%emt 0:28:45]} (18. b3 $14) 18... exd4 $11 {[%emt 0:04:36]} 19. Nxd4 {[%emt 0:00:48]} Bg7 {[%emt 0:00:10]} 20. Bd2 {[%emt 0:02:06]} Qb6 {[%emt 0:05:57]} 21. Nb3 {[%emt 0:04:05]} Be6 {[%emt 0:00:52]} 22. Nxa5 {[%emt 0:02:39]} Qxa5 {[%emt 0:00:03]} 23. Qe2 {[%emt 0:00:45]} Re8 {[%emt 0:06:12]} (23... Nh5 $11) 24. Nc2 $1 $14 {[%emt 0:01:04]} Rab8 {[%emt 0:05:09]} 25. Be3 {[%emt 0:07:06]} (25. Bxa6 $14 Bb3 26. Nd4) 25... Bd7 $11 {[%emt 0:05:04][%csl LRa4,LRe4]} 26. Bd4 {[%emt 0:05:07]} ({Reject} 26. Bxa6 Nxe4 27. Bb5 Bxb5 28. axb5 Qxb5 $17) 26... Qg5 {[%emt 0:03:49]} ({Black should try} 26... b3 $15 27. Bc3 Qg5) 27. Qe3 {[%emt 0:02:30]} Qxe3 {[%emt 0:00:32]} (27... Qh4 {is interesting.} 28. Bxa6 b3 29. Na3 Rb4) 28. Nxe3 {[%emt 0:00:18]} Nxe4 {[%emt 0:00:56]} 29. Bxg7 {[%emt 0:00:06]} Kxg7 {[%emt 0:00:05]} 30. Bxa6 {[%emt 0:02:07]} Nc5 {[%emt 0:00:39][%csl LRa4,LRa6]} 31. Bc4 {[%emt 0:01:07]} Bxa4 {[%emt 0:04:50]} 32. Nd5 {[%emt 0:00:02]} Rxe1+ {[%emt 0:00:53]} 33. Rxe1 {[%emt 0:00:03]} Rb7 {[%emt 0:00:16]} 34. Re3 {[%emt 0:01:42] Black converts the advantage convincingly.} Bd7 {[%emt 0:03:40]} 35. Re7 {[%emt 0:00:37]} (35. Re1 $142) 35... Be6 $17 {[%emt 0:00:19]} 36. Rxb7 {[%emt 0:00:10]} Nxb7 {[%emt 0:00:02]} 37. Ne3 {[%emt 0:00:17]} (37. b3 $17) 37... Bxc4 $19 {[%emt 0:01:04]} 38. Nxc4 {[%emt 0:00:02][%mdl 4096] Endgame [#] KN-KN} Kf6 $1 {[%emt 0:00:16]} 39. Kf1 {[%emt 0:00:15]} Ke6 {[%emt 0:01:15]} 40. Ke2 {[%emt 0:00:20]} Kd5 {[%emt 0:00:10]} 41. Ne3+ {[%emt 0:31:24]} (41. Nd2 {was the only defense.}) 41... Kd4 {[%emt 0:30:28]} 42. Kd2 {[%emt 0:00:52]} Nc5 {[%emt 0:00:32]} 43. Nd1 {[%emt 0:00:35]} (43. Nc2+ {was necessary.} Kc4 44. Ne1) 43... f5 {[%emt 0:02:20][%cal Bf7f5,Bf5f4,Bf4f3][%mdl 32] Black is clearly winning.} 44. h4 {[%emt 0:00:00]} d5 {[%emt 0:00:00]} 45. Kc2 {[%emt 0:00:00]} (45. Ke2 $142 f4 46. g3) 45... Nd3 {[%emt 0:00:00]} 46. Kd2 {[%emt 0:00:00]} (46. g3 $142 f4 47. gxf4) 46... f4 {[%emt 0:00:00]} 47. Ke2 {[%emt 0:00:00]} Ne5 {[%emt 0:00:00]} 48. Kd2 {[%emt 0:00:00]} f3 {[%emt 0:00:00]} 49. g3 {[%emt 0:00:00]} b3 {[%emt 0:00:00] [#] ...Nc4+ is the strong threat.} 50. Nc3 {[%emt 0:00:00]} Nc4+ {[%emt 0:00:00]} 51. Kc1 {[%emt 0:00:00]} Kd3 {[%emt 0:00:00] Weighted Error Value: White=0.71/Black=0.14 (very precise)} 0-1

[Event "26th Womens ECCC 2022"]
[Site "Mayrhofen"]
[Date "2022.10.09"]
[Round "7.21"]
[White "Katkov, Michelle"]
[Black "Enkhtuul, Altan-Ulzii"]
[Result "1/2-1/2"]
[ECO "C09"]
[WhiteElo "2219"]
[BlackElo "2295"]
[Annotator "TA"]
[PlyCount "96"]
[EventDate "2022.10.03"]
[EventType "team-tourn"]
[EventCountry "AUT"]
[SourceTitle "playchess.com"]
[Source "ChessBase"]
[SourceQuality "1"]
[TimeControl "40/5400+30:1800+30"]

{[%evp 18,96,29,20,23,5,0,-14,-9,-10,-11,-20,-21,-11,0,0,0,0,0,0,0,0,0,-18,-13,-14,-15,-62,-65,-66,-54,-43,-1,-1,-5,-4,-5,-8,0,-8,-8,-7,-8,-7,-8,-8,-8,-8,0,0,0,0,0,0,-8,-8,-8,-8,0,0,0,0,0,0,0,0,0,0,0,0,0,0,0,0,0,0,0,0,0,0,0]} 1. e4 {[%emt 0:00:03]} e6 {[%emt 0:00:03]} 2. d4 {[%emt 0:00:04]} d5 {[%emt 0:00:03]} 3. Nd2 {[%emt 0:00:04]} c5 {[%emt 0:00:06]} 4. exd5 {[%emt 0:00:07]} exd5 {[%emt 0:00:03]} 5. Ngf3 {[%emt 0:00:14]} Nc6 {[%emt 0:00:07]} 6. Bb5 {[%emt 0:00:43]} cxd4 {[%emt 0:00:05]} 7. O-O {[%emt 0:02:03]} Bd6 {[%emt 0:00:04]} 8. Nb3 {[%emt 0:02:25]} Nge7 {[%emt 0:00:05]} 9. Nbxd4 {[%emt 0:01:41]} O-O {[%emt 0:00:14]} 10. h3 {[%emt 0:00:55]} Nxd4 {[%emt 0:00:08] C09: French Tarrasch: 3...c5 4 exd5 exd5 5 Ngf3 Nc6.} 11. Nxd4 {[%emt 0:00:55]} Bc7 {[%emt 0:00:07]} 12. Bd3 {[%emt 0:09:58]} Qd6 {[%emt 0:01:48][%csl Gc7][%cal Rd6h2] [#]} 13. g3 {[%emt 0:04:10] Active counter play!} Bb6 {[%emt 0:01:23] [#]} (13... Bxh3 $2 14. Qh5 g6 15. Qxh3 $18) 14. c3 $146 {[%emt 0:00:26]} ({Predecessor:} 14. Be3 Bxd4 15. Bxd4 Nc6 16. c3 Nxd4 17. cxd4 Qf6 18. h4 Bf5 19. Re1 Bxd3 20. Qxd3 {½-½ (29) Sjugirov,S (2629)-Zvjaginsev,V (2659) Taganrog 2011}) 14... Bxd4 15. cxd4 {[%emt 0:00:27]} Bf5 {[%emt 0:11:31]} 16. Bg5 {[%emt 0:04:18] [#] And now Bxe7 would win.} f6 {[%emt 0:01:32]} 17. Bf4 {[%emt 0:01:04] A strong pair of Bishops.} Qd7 {[%emt 0:07:57]} 18. Bxf5 {[%emt 0:07:24]} Qxf5 {[%emt 0:00:21]} 19. Bd6 {[%emt 0:01:47]} Rf7 {[%emt 0:01:35]} 20. g4 {[%emt 0:13:55]} Qd7 {[%emt 0:00:23]} 21. Bxe7 {[%emt 0:00:35]} Rxe7 {[%emt 0:00:06]} 22. Qd2 {[%emt 0:01:05]} (22. Qd3 $11 {should be considered.}) 22... h5 $15 {[%emt 0:10:21]} 23. f3 {[%emt 0:00:39]} Rae8 {[%emt 0:02:21] Strongly threatening ...Re2.} 24. Rae1 {[%emt 0:00:56] Prevents Re2.} hxg4 {[%emt 0:12:51]} 25. hxg4 {[%emt 0:01:31] The position is equal.} (25. Rxe7 {looks sharper.} Qxe7 26. hxg4 Qe2 27. Qc3) 25... f5 {[%emt 0:09:50]} 26. Rxe7 {[%emt 0:11:44]} Rxe7 $11 {[%emt 0:01:10][%cal Be8e7,Be7f7,Bf7f4,Bf4g4][%mdl 4128] Endgame KQR-KQR} 27. Qf4 {[%emt 0:05:41]} Rf7 {[%emt 0:04:28]} (27... fxg4 {with more complications.} 28. fxg4 Re4 29. Qb8+ Qe8) 28. Re1 {[%emt 0:06:46]} fxg4 {[%emt 0:21:52]} 29. Qxg4 {[%emt 0:00:09]} Qxg4+ {[%emt 0:06:46]} 30. fxg4 {[%emt 0:00:04] KR-KR} Rf4 {[%emt 0:00:08][%csl LRd4,LRg4]} 31. Re7 {[%emt 0:00:04]} Rxg4+ {[%emt 0:00:22]} 32. Kf2 {[%emt 0:00:07]} Rxd4 {[%emt 0:01:53] Threatens to win with ...Rd2+.} 33. Rxb7 {[%emt 0:00:10]} Ra4 {[%emt 0:00:46]} 34. a3 {[%emt 0:00:14]} Kh7 {[%emt 0:00:59]} 35. Ke3 {[%emt 0:02:06]} Kh6 {[%emt 0:00:21]} 36. Rd7 {[%emt 0:00:47]} Ra5 {[%emt 0:02:46]} 37. Kf4 {[%emt 0:03:35]} g5+ {[%emt 0:00:39]} 38. Kg4 {[%emt 0:01:21]} Ra4+ {[%emt 0:01:08]} 39. b4 {[%emt 0:00:07]} Rxa3 {[%emt 0:02:41]} 40. Rd6+ {[%emt 0:00:08]} Kg7 {[%emt 0:00:10]} 41. Kxg5 {[%emt 0:30:20]} Kf7 {[%emt 0:03:32]} 42. Rxd5 {[%emt 0:00:00]} Ke6 {[%emt 0:00:20]} 43. Ra5 {[%emt 0:00:00]} Rg3+ {[%emt 0:02:40]} 44. Kf4 {[%emt 0:00:00]} Rg7 {[%emt 0:00:37]} 45. Ke4 {[%emt 0:00:00] White wants to mate with Ra6+.} Rb7 {[%emt 0:00:34]} 46. Ra6+ {[%emt 0:00:00]} Kd7 {[%emt 0:01:16]} 47. Kd5 {[%emt 0:00:00]} Rxb4 {[%emt 0:00:15]} 48. Rxa7+ {[%emt 0:00:00]} Kc8 {[%emt 0:00:07] Weighted Error Value: White=0.03 (flawless) /Black=0.03 (flawless)} 1/2-1/2

[Event "26th Womens ECCC 2022"]
[Site "Mayrhofen"]
[Date "2022.10.09"]
[Round "7.22"]
[White "Klek, Hanna Marie"]
[Black "Federovski, Adi"]
[Result "*"]
[WhiteElo "2301"]
[BlackElo "1967"]
[Annotator "TA"]
[PlyCount "84"]
[EventDate "2022.10.03"]
[EventType "team-tourn"]
[EventCountry "AUT"]
[SourceTitle "playchess.com"]
[Source "ChessBase"]
[SourceQuality "1"]
[TimeControl "40/5400+30:1800+30"]

{[%evp 15,84,20,10,4,52,40,50,-28,-9,-6,47,0,0,0,0,-6,0,-4,96,-36,-31,-38,-25,-32,-26,-33,0,-37,-33,-130,0,0,0,0,0,-96,0,-3,-10,-13,9,-17,0,0,72,63,74,72,282,-100,-99,-86,-95,-120,-106,-229,-99,-174,0,-171,-167,-347,-345,-510,0,0,0,-78,0,0,0]} 1. d4 {[%emt 0:00:03]} Nf6 {[%emt 0:00:08]} 2. c4 {[%emt 0:00:05]} e6 {[%emt 0:00:07]} 3. Nc3 {[%emt 0:00:07]} Bb4 {[%emt 0:00:05]} 4. e3 {[%emt 0:00:32]} c5 {[%emt 0:02:08]} 5. Bd3 {[%emt 0:01:02]} Nc6 {[%emt 0:02:38]} 6. Nge2 {[%emt 0:03:09]} b6 {[%emt 0:04:29]} 7. O-O {[%emt 0:00:58]} Bxc3 {[%emt 0:00:17]} 8. bxc3 {[%emt 0:01:04]} O-O {[%emt 0:02:26]} 9. e4 {[%emt 0:06:05] E41: Nimzo-Indian: Rubinstein: 4...c5 5 Bd3, including Hübner Variation.} Ne8 {[%emt 0:21:26]} (9... d6 $11) 10. e5 {[%emt 0:05:31]} d6 {[%emt 0:02:33] [#]} 11. Be4 $146 {[%emt 0:07:38]} (11. exd6 $14 Qxd6 12. Bf4) ({Predecessor:} 11. Ng3 Ba6 12. Qg4 Qd7 13. Qh3 f5 14. exf6 Nxf6 15. d5 Ne5 16. dxe6 Qc7 17. Nf5 Nxd3 18. Qxd3 {1-0 (26) Portisch,F (2370)-Kozlova,O (2240) Harkany 1997}) 11... Bb7 $11 {[%emt 0:09:36]} 12. Qd3 $132 {[%emt 0:07:09][%mdl 2048] White puts up resistance} f5 {[%emt 0:01:28]} ({Black should play} 12... h6 $11) 13. exf6 {[%emt 0:00:07]} (13. Bxc6 $14 {was preferrable.} Bxc6 14. Bf4) 13... Nxf6 {[%emt 0:00:05]} 14. Bg5 {[%emt 0:01:49][%cal Oe4h7] A strong pair of Bishops.} h6 {[%emt 0:00:09]} 15. Bh4 {[%emt 0:00:49][%cal Oe4h7]} Qd7 {[%emt 0:04:49]} 16. Bf3 {[%emt 0:05:03]} e5 {[%emt 0:07:37]} (16... Ba6 $11 {keeps the balance.}) 17. Bxc6 {[%emt 0:09:35] White is more active.} (17. Bxf6 $16 {[%cal Od4e5]} Rxf6 18. dxc5) 17... Qxc6 {[%emt 0:00:20][%csl Gb7][%cal Rc6g2]} 18. d5 $1 {[%emt 0:00:09]} Qa4 {[%emt 0:02:37] Threatens to win with ...Ba6.} 19. Bxf6 {[%emt 0:04:39]} Rxf6 {[%emt 0:00:10]} 20. Ng3 $1 {[%emt 0:01:03]} Rd8 {[%emt 0:03:13]} 21. Nh5 {[%emt 0:04:47]} (21. f4 $5) 21... Rf7 {[%emt 0:00:25]} 22. Rae1 {[%emt 0:04:53]} (22. f4 $15) 22... b5 {[%emt 0:06:24]} (22... Qxa2 $6 23. Ra1 e4 24. Qxe4 $11 (24. Rxa2 exd3 25. Rd1 a5 $17)) (22... Ba6 $17 23. Re4 Rdf8) 23. cxb5 {[%emt 0:03:30]} c4 {[%emt 0:00:25]} 24. Qb1 {[%emt 0:01:09]} Bxd5 {[%emt 0:01:46]} 25. f4 {[%emt 0:01:55]} (25. Re3 $11) 25... e4 {[%emt 0:05:47]} (25... Qa5 $17 26. Qc2 Qxb5) 26. f5 {[%emt 0:00:21]} Rb8 {[%emt 0:01:17]} 27. f6 {[%emt 0:01:11]} Qxb5 {[%emt 0:08:54]} 28. Qd1 {[%emt 0:00:54]} Qc5+ {[%emt 0:00:56]} 29. Kh1 {[%emt 0:00:40]} e3 {[%emt 0:01:49]} (29... g6 $11 {remains equal.}) 30. Nxg7 $16 {[%emt 0:03:54]} (30. fxg7 Rb2 31. Rxf7 (31. Nf6+ $2 Rxf6 32. Re2 Rxe2 $19) 31... Bxf7 32. Nf6+ Kxg7 $15) 30... Rb2 {[%emt 0:05:00][%csl LRa2,LRg2]} 31. Re2 {[%emt 0:00:09]} Rfb7 {[%emt 0:04:57]} (31... Rd2 $16 {was called for.} 32. Rxd2 exd2) 32. Rg1 $2 {[%emt 0:09:42] [#]} ({White has to play} 32. Nf5 $18 {White wants to mate with Rxb2.} h5 33. Ne7+ (33. Nxe3 Rb1 $16) 33... Kf8 34. Nxd5 Rxe2 35. Qxe2 Qxd5 36. Qxe3) 32... Bf7 $1 $17 {[%emt 0:00:51]} 33. Rxb2 {[%emt 0:06:52]} Rxb2 {[%emt 0:00:04]} 34. Qf3 {[%emt 0:00:54]} e2 {[%emt 0:00:34][%cal Oc5g1] ( -> ...Qxg1+!)} 35. Re1 {[%emt 0:00:59]} (35. Qa8+ $17 Kh7 36. Qe4+ Kh8 37. Nf5) 35... Qg5 {[%emt 0:01:13]} (35... Qe5 $19 {[%cal Ob2b1] and Black stays clearly on top. aiming for ...Rb1!} 36. Qg4 Qxf6 37. Nh5+ Qg6 38. Qxg6+ Bxg6) 36. h3 {[%emt 0:04:33]} ({Not} 36. Qa8+ $2 Kh7 37. Qe4+ Qg6 $17) (36. Nf5 $17) 36... Rxa2 $2 {[%emt 0:00:20]} (36... Qh4 $19 37. Rxe2 Rxe2 38. Qxe2 Qxf6) 37. Nf5 $2 {[%emt 0:01:30]} (37. Qa8+ $11 {and White has nothing to worry.} Kh7 38. Qe4+ Kh8 39. Qa8+ Kh7 40. Qe4+ Kh8 41. Qa8+ Kh7) 37... Qxf6 $19 {[%emt 0:00:35]} 38. Qg3+ $2 {[%emt 0:02:54] [#]} (38. g4) 38... Kh7 $1 {[%emt 0:00:27]} 39. Nxd6 {[%emt 0:01:09]} (39. Nd4 {is a better defense.}) 39... Qg6 $2 {[%emt 0:01:01]} (39... Rd2 $19 {Hoping for ...Rd1.} 40. Kg1 Rxd6 41. Rxe2 Rd3) 40. Qe5 $11 {[%emt 0:01:03]} Qg7 {[%emt 0:00:50]} 41. Qe4+ {[%emt 0:06:11]} (41. Nxf7 $11 Qxf7 42. Kg1) 41... Qg6 {[%emt 0:07:25]} ({Better is} 41... Bg6 $17 42. Qf3 Qd7 43. Nxc4 Qf7) 42. Qe7 {[%emt 0:01:45]} Kg7 {[%emt 0:00:13] Weighted Error Value: White=0.57/Black=0.53} *